[Event "Titled Tuesday Blitz January 03 Late 2023"]
[White "Kosteniuk, Alexandra"]
[Black "Fiorito, Joaquin"]
[WhiteFideId "4128125"]
[BlackFideId "180173"]
[WhiteElo "2535"]
[BlackElo "2405"]
[Result "1/2-1/2"]
[Round "11"]
[TimeControl "180+2"]
[Date "2023.01.03"]
[WhiteClock "0:00:15"]
[BlackClock "0:00:20"]

1. e4 {[%clk 0:03:00]}  c6 {[%clk 0:03:00]} 2. Nc3 {[%clk 0:03:00]}  d5 {[%clk 0:03:00]} 3. Nf3 {[%clk 0:03:00]}  Bg4 {[%clk 0:03:01]} 4. h3 {[%clk 0:02:59]}  Bxf3 {[%clk 0:03:01]} 5. Qxf3 {[%clk 0:03:00]}  Nf6 {[%clk 0:03:02]} 6. e5 {[%clk 0:02:59]}  Nfd7 {[%clk 0:03:03]} 7. d4 {[%clk 0:02:57]}  e6 {[%clk 0:03:03]} 8. Qg3 {[%clk 0:02:55]}  Qb6 {[%clk 0:03:02]} 9. Ne2 {[%clk 0:02:45]}  c5 {[%clk 0:03:02]} 10. Nf4 {[%clk 0:02:23]}  Nc6 {[%clk 0:02:55]} 11. dxc5 {[%clk 0:02:17]}  Qxc5 {[%clk 0:02:48]} 12. Nd3 {[%clk 0:02:15]}  Qxc2 {[%clk 0:02:47]} 13. Bd2 {[%clk 0:02:08]}  Qc4 {[%clk 0:02:28]} 14. Be2 {[%clk 0:01:59]}  Nd4 {[%clk 0:02:11]} 15. Bd1 {[%clk 0:01:53]}  Nf5 {[%clk 0:02:08]} 16. Qf3 {[%clk 0:01:40]}  Nh4 {[%clk 0:02:08]} 17. Qg3 {[%clk 0:01:35]}  Nxg2+ {[%clk 0:02:05]} 18. Kf1 {[%clk 0:01:35]}  Nh4 {[%clk 0:01:53]} 19. Be2 {[%clk 0:01:34]}  Nf5 {[%clk 0:01:54]} 20. Qg4 {[%clk 0:01:14]}  Qxg4 {[%clk 0:01:49]} 21. hxg4 {[%clk 0:01:13]}  Nd4 {[%clk 0:01:49]} 22. Bd1 {[%clk 0:01:13]}  Rc8 {[%clk 0:01:45]} 23. Be3 {[%clk 0:00:59]}  Nc6 {[%clk 0:01:42]} 24. f4 {[%clk 0:00:57]}  Be7 {[%clk 0:01:38]} 25. g5 {[%clk 0:00:56]}  Nb4 {[%clk 0:01:31]} 26. Nxb4 {[%clk 0:00:49]}  Bxb4 {[%clk 0:01:32]} 27. Ba4 {[%clk 0:00:49]}  b6 {[%clk 0:01:31]} 28. Ke2 {[%clk 0:00:48]}  Ke7 {[%clk 0:01:29]} 29. Rac1 {[%clk 0:00:47]}  Nc5 {[%clk 0:01:26]} 30. Bc2 {[%clk 0:00:45]}  Ne4 {[%clk 0:01:17]} 31. Bxe4 {[%clk 0:00:35]}  dxe4 {[%clk 0:01:18]} 32. a3 {[%clk 0:00:29]}  Bc5 {[%clk 0:01:13]} 33. Bxc5+ {[%clk 0:00:29]}  bxc5 {[%clk 0:01:13]} 34. Ke3 {[%clk 0:00:29]}  h6 {[%clk 0:00:58]} 35. gxh6 {[%clk 0:00:26]}  gxh6 {[%clk 0:00:59]} 36. Kxe4 {[%clk 0:00:26]}  h5 {[%clk 0:00:59]} 37. Rc3 {[%clk 0:00:25]}  h4 {[%clk 0:00:50]} 38. Rh2 {[%clk 0:00:25]}  f5+ {[%clk 0:00:47]} 39. exf6+ {[%clk 0:00:25]}  Kxf6 {[%clk 0:00:48]} 40. Rch3 {[%clk 0:00:17]}  Rb8 {[%clk 0:00:48]} 41. Rxh4 {[%clk 0:00:14]}  Rxh4 {[%clk 0:00:49]} 42. Rxh4 {[%clk 0:00:14]}  Rxb2 {[%clk 0:00:49]} 43. Rh7 {[%clk 0:00:14]}  a5 {[%clk 0:00:39]} 44. Ra7 {[%clk 0:00:14]}  Rb5 {[%clk 0:00:38]} 45. Ra6 {[%clk 0:00:13]}  c4 {[%clk 0:00:34]} 46. Kd4 {[%clk 0:00:13]}  Rf5 {[%clk 0:00:34]} 47. Kxc4 {[%clk 0:00:12]}  Rxf4+ {[%clk 0:00:34]} 48. Kb5 {[%clk 0:00:12]}  Rf5+ {[%clk 0:00:34]} 49. Kc4 {[%clk 0:00:12]}  Rd5 {[%clk 0:00:33]} 50. a4 {[%clk 0:00:10]}  Rh5 {[%clk 0:00:33]} 51. Ra8 {[%clk 0:00:09]}  Rd5 {[%clk 0:00:29]} 52. Ra7 {[%clk 0:00:08]}  Ke5 {[%clk 0:00:28]} 53. Ra8 {[%clk 0:00:08]}  Rd4+ {[%clk 0:00:27]} 54. Kb5 {[%clk 0:00:08]}  Rd5+ {[%clk 0:00:27]} 55. Kb6 {[%clk 0:00:08]}  Kd4 {[%clk 0:00:24]} 56. Rxa5 {[%clk 0:00:08]}  Rxa5 {[%clk 0:00:16]} 57. Kxa5 {[%clk 0:00:09]}  e5 {[%clk 0:00:17]} 58. Kb6 {[%clk 0:00:10]}  e4 {[%clk 0:00:18]} 59. a5 {[%clk 0:00:10]}  e3 {[%clk 0:00:18]} 60. a6 {[%clk 0:00:11]}  e2 {[%clk 0:00:19]} 61. a7 {[%clk 0:00:12]}  e1=Q {[%clk 0:00:20]} 62. a8=Q {[%clk 0:00:13]}  Qe6+ {[%clk 0:00:20]} 63. Kb7 {[%clk 0:00:13]}  Qd7+ {[%clk 0:00:20]} 64. Kb8 {[%clk 0:00:13]}  Qd8+ {[%clk 0:00:19]} 65. Kb7 {[%clk 0:00:14]}  Qd7+ {[%clk 0:00:20]} 66. Kb8 {[%clk 0:00:14]}  Kc5 {[%clk 0:00:19]} 67. Qb7 {[%clk 0:00:14]}  Qd8+ {[%clk 0:00:19]} 68. Qc8+ {[%clk 0:00:14]}  Qxc8+ {[%clk 0:00:20]} 69. Kxc8 {[%clk 0:00:15]} 1/2-1/2


[Site "https://www.chess.com"]

[Event "Titled Tuesday Blitz January 03 Late 2023"]
[White "Pranav, V"]
[Black "Yurovskykh, Oleksandr"]
[WhiteFideId "25060783"]
[BlackFideId "14134020"]
[WhiteElo "2597"]
[BlackElo "2328"]
[Result "1-0"]
[Round "11"]
[TimeControl "180+2"]
[Date "2023.01.03"]
[WhiteClock "0:01:33"]
[BlackClock "0:00:05"]

1. d4 {[%clk 0:03:00]}  d5 {[%clk 0:02:56]} 2. Bf4 {[%clk 0:03:00]}  c5 {[%clk 0:02:56]} 3. e3 {[%clk 0:03:00]}  Nc6 {[%clk 0:02:57]} 4. Nf3 {[%clk 0:03:00]}  Bg4 {[%clk 0:02:54]} 5. Nbd2 {[%clk 0:02:59]}  e6 {[%clk 0:02:53]} 6. c3 {[%clk 0:02:59]}  cxd4 {[%clk 0:02:48]} 7. exd4 {[%clk 0:02:59]}  Bd6 {[%clk 0:02:47]} 8. Bxd6 {[%clk 0:02:58]}  Qxd6 {[%clk 0:02:47]} 9. Qb3 {[%clk 0:02:59]}  Rb8 {[%clk 0:02:47]} 10. Bb5 {[%clk 0:02:53]}  Bxf3 {[%clk 0:02:38]} 11. Nxf3 {[%clk 0:02:53]}  Ne7 {[%clk 0:02:38]} 12. O-O {[%clk 0:02:51]}  O-O {[%clk 0:02:38]} 13. Rfe1 {[%clk 0:02:49]}  a6 {[%clk 0:02:37]} 14. Bd3 {[%clk 0:02:49]}  b5 {[%clk 0:02:34]} 15. a3 {[%clk 0:02:48]}  Rfc8 {[%clk 0:02:27]} 16. Qd1 {[%clk 0:02:47]}  h6 {[%clk 0:02:23]} 17. Bc2 {[%clk 0:02:44]}  a5 {[%clk 0:02:20]} 18. g3 {[%clk 0:02:42]}  b4 {[%clk 0:02:16]} 19. axb4 {[%clk 0:02:42]}  axb4 {[%clk 0:02:16]} 20. Qd3 {[%clk 0:02:42]}  g6 {[%clk 0:02:15]} 21. Qe3 {[%clk 0:02:38]}  Kg7 {[%clk 0:02:11]} 22. Ra6 {[%clk 0:02:37]}  bxc3 {[%clk 0:02:06]} 23. bxc3 {[%clk 0:02:38]}  Ra8 {[%clk 0:01:58]} 24. Rxa8 {[%clk 0:02:37]}  Rxa8 {[%clk 0:01:59]} 25. h4 {[%clk 0:02:37]}  Ra2 {[%clk 0:01:05]} 26. Bb1 {[%clk 0:02:37]}  Rb2 {[%clk 0:01:01]} 27. Nh2 {[%clk 0:02:35]}  h5 {[%clk 0:00:58]} 28. g4 {[%clk 0:02:32]}  hxg4 {[%clk 0:00:48]} 29. Nxg4 {[%clk 0:02:32]}  Ng8 {[%clk 0:00:48]} 30. Kg2 {[%clk 0:02:02]}  Qb8 {[%clk 0:00:47]} 31. Bd3 {[%clk 0:02:00]}  Rb3 {[%clk 0:00:42]} 32. Rh1 {[%clk 0:01:53]}  Rxc3 {[%clk 0:00:31]} 33. h5 {[%clk 0:01:53]}  Nb4 {[%clk 0:00:17]} 34. h6+ {[%clk 0:01:40]}  Kh7 {[%clk 0:00:14]} 35. Bxg6+ {[%clk 0:01:39]}  fxg6 {[%clk 0:00:12]} 36. Qxc3 {[%clk 0:01:40]}  Qf4 {[%clk 0:00:10]} 37. Qf3 {[%clk 0:01:38]}  Qxf3+ {[%clk 0:00:06]} 38. Kxf3 {[%clk 0:01:39]}  Nc2 {[%clk 0:00:06]} 39. Kf4 {[%clk 0:01:34]}  Nxd4 {[%clk 0:00:05]} 40. Ke5 {[%clk 0:01:34]}  Nf5 {[%clk 0:00:04]} 41. Kxe6 {[%clk 0:01:34]}  Ngxh6 {[%clk 0:00:04]} 42. Nxh6 {[%clk 0:01:33]}  Nxh6 {[%clk 0:00:05]} 43. Kf6 {[%clk 0:01:33]} 1-0


[Site "https://www.chess.com"]

[Event "Titled Tuesday Blitz January 03 Late 2023"]
[White "Denishev, Marat"]
[Black "Lazavik, Denis"]
[WhiteFideId "24131563"]
[BlackFideId "13515110"]
[WhiteElo "2255"]
[BlackElo "2544"]
[Result "0-1"]
[Round "11"]
[TimeControl "180+2"]
[Date "2023.01.03"]
[WhiteClock "0:00:01"]
[BlackClock "0:00:07"]

1. d4 {[%clk 0:02:57]}  d5 {[%clk 0:02:59]} 2. c4 {[%clk 0:02:56]}  c6 {[%clk 0:03:00]} 3. Nf3 {[%clk 0:02:56]}  Nf6 {[%clk 0:03:00]} 4. Nc3 {[%clk 0:02:54]}  dxc4 {[%clk 0:03:00]} 5. e4 {[%clk 0:02:52]}  b5 {[%clk 0:02:59]} 6. e5 {[%clk 0:02:52]}  Nd5 {[%clk 0:02:59]} 7. a4 {[%clk 0:02:52]}  e6 {[%clk 0:02:56]} 8. axb5 {[%clk 0:02:51]}  Nxc3 {[%clk 0:02:57]} 9. bxc3 {[%clk 0:02:52]}  cxb5 {[%clk 0:02:57]} 10. Ng5 {[%clk 0:02:52]}  Bb7 {[%clk 0:02:58]} 11. Qg4 {[%clk 0:02:51]}  Qd7 {[%clk 0:02:49]} 12. Be2 {[%clk 0:02:50]}  Nc6 {[%clk 0:02:47]} 13. O-O {[%clk 0:02:40]}  Ne7 {[%clk 0:02:45]} 14. Ba3 {[%clk 0:02:33]}  Nd5 {[%clk 0:02:43]} 15. Bxf8 {[%clk 0:02:30]}  Kxf8 {[%clk 0:02:42]} 16. Ne4 {[%clk 0:02:19]}  h5 {[%clk 0:02:38]} 17. Qg3 {[%clk 0:02:10]}  h4 {[%clk 0:02:35]} 18. Qg4 {[%clk 0:02:09]}  Qe7 {[%clk 0:02:35]} 19. Bf3 {[%clk 0:01:59]}  Bc6 {[%clk 0:02:29]} 20. Ra6 {[%clk 0:01:53]}  Bb7 {[%clk 0:02:25]} 21. Rd6 {[%clk 0:01:45]}  Rd8 {[%clk 0:02:15]} 22. Nc5 {[%clk 0:01:39]}  Bc8 {[%clk 0:02:11]} 23. Ra1 {[%clk 0:01:16]}  Rxd6 {[%clk 0:01:46]} 24. exd6 {[%clk 0:01:17]}  Qxd6 {[%clk 0:01:47]} 25. Rxa7 {[%clk 0:01:13]}  Ne7 {[%clk 0:01:02]} 26. Ra8 {[%clk 0:00:58]}  g6 {[%clk 0:01:01]} 27. Ne4 {[%clk 0:00:43]}  Qd5 {[%clk 0:01:00]} 28. Nc5 {[%clk 0:00:24]}  Qf5 {[%clk 0:00:56]} 29. h3 {[%clk 0:00:17]}  Kg7 {[%clk 0:00:54]} 30. Rb8 {[%clk 0:00:15]}  Qxg4 {[%clk 0:00:44]} 31. hxg4 {[%clk 0:00:16]}  h3 {[%clk 0:00:41]} 32. gxh3 {[%clk 0:00:14]}  Rxh3 {[%clk 0:00:40]} 33. Kg2 {[%clk 0:00:14]}  Rh8 {[%clk 0:00:39]} 34. Rxb5 {[%clk 0:00:14]}  g5 {[%clk 0:00:25]} 35. Rb8 {[%clk 0:00:13]}  Ng6 {[%clk 0:00:25]} 36. Kg3 {[%clk 0:00:10]}  Nf4 {[%clk 0:00:25]} 37. Bg2 {[%clk 0:00:11]}  Ne2+ {[%clk 0:00:24]} 38. Kf3 {[%clk 0:00:11]}  Nxc3 {[%clk 0:00:25]} 39. Ke3 {[%clk 0:00:06]}  Nd1+ {[%clk 0:00:16]} 40. Ke2 {[%clk 0:00:05]}  e5 {[%clk 0:00:17]} 41. Rxc8 {[%clk 0:00:02]}  Nc3+ {[%clk 0:00:09]} 42. Kd2 {[%clk 0:00:02]}  Nb1+ {[%clk 0:00:09]} 43. Kc2 {[%clk 0:00:02]}  Rxc8 {[%clk 0:00:10]} 44. Kxb1 {[%clk 0:00:02]}  exd4 {[%clk 0:00:10]} 45. Ne4 {[%clk 0:00:03]}  f6 {[%clk 0:00:08]} 46. Nd6 {[%clk 0:00:03]}  Rb8+ {[%clk 0:00:07]} 47. Kc2 {[%clk 0:00:03]}  d3+ {[%clk 0:00:07]} 48. Kc3 {[%clk 0:00:03]}  Rb3+ {[%clk 0:00:07]} 49. Kxc4 {[%clk 0:00:03]}  d2 {[%clk 0:00:07]} 50. Nf5+ {[%clk 0:00:03]}  Kf8 {[%clk 0:00:08]} 51. Bf3 {[%clk 0:00:01]}  Rxf3 {[%clk 0:00:07]} 0-1


[Site "https://www.chess.com"]

[Event "Titled Tuesday Blitz January 03 Late 2023"]
[White "Mendez Fortes, Eduardo Jesus"]
[Black "Rozman, Levy"]
[WhiteFideId "3502376"]
[BlackFideId "2039877"]
[WhiteElo "2250"]
[BlackElo "2322"]
[Result "0-1"]
[Round "11"]
[TimeControl "180+2"]
[Date "2023.01.03"]
[WhiteClock "0:00:11"]
[BlackClock "0:00:13"]

1. e4 {[%clk 0:03:00]}  e6 {[%clk 0:02:58]} 2. d4 {[%clk 0:03:01]}  d5 {[%clk 0:02:59]} 3. Nd2 {[%clk 0:03:02]}  dxe4 {[%clk 0:03:00]} 4. Nxe4 {[%clk 0:03:02]}  Nf6 {[%clk 0:03:01]} 5. Nxf6+ {[%clk 0:03:02]}  gxf6 {[%clk 0:03:02]} 6. Nf3 {[%clk 0:03:03]}  Nc6 {[%clk 0:03:02]} 7. c3 {[%clk 0:03:03]}  b6 {[%clk 0:03:01]} 8. Bd3 {[%clk 0:03:03]}  Bb7 {[%clk 0:03:02]} 9. Qe2 {[%clk 0:03:04]}  Qd7 {[%clk 0:03:02]} 10. Be4 {[%clk 0:02:54]}  O-O-O {[%clk 0:03:01]} 11. Bf4 {[%clk 0:02:44]}  Rg8 {[%clk 0:03:01]} 12. Bg3 {[%clk 0:02:42]}  f5 {[%clk 0:02:58]} 13. Bc2 {[%clk 0:02:33]}  Bd6 {[%clk 0:02:56]} 14. O-O-O {[%clk 0:02:25]}  f4 {[%clk 0:02:37]} 15. Bh4 {[%clk 0:02:25]}  Rde8 {[%clk 0:02:37]} 16. Rhg1 {[%clk 0:02:21]}  h6 {[%clk 0:02:33]} 17. Bh7 {[%clk 0:02:17]}  Rg7 {[%clk 0:02:30]} 18. Bd3 {[%clk 0:02:06]}  Be7 {[%clk 0:02:19]} 19. Bxe7 {[%clk 0:01:56]}  Qxe7 {[%clk 0:02:16]} 20. Be4 {[%clk 0:01:50]}  f6 {[%clk 0:01:58]} 21. Qb5 {[%clk 0:01:47]}  a6 {[%clk 0:01:46]} 22. Qe2 {[%clk 0:01:36]}  Kb8 {[%clk 0:01:34]} 23. Nd2 {[%clk 0:01:32]}  e5 {[%clk 0:01:25]} 24. Bxc6 {[%clk 0:01:01]}  Bxc6 {[%clk 0:01:25]} 25. dxe5 {[%clk 0:00:50]}  fxe5 {[%clk 0:01:18]} 26. f3 {[%clk 0:00:48]}  Qe6 {[%clk 0:01:07]} 27. Kb1 {[%clk 0:00:44]}  Reg8 {[%clk 0:01:03]} 28. Qxa6 {[%clk 0:00:35]}  Rxg2 {[%clk 0:00:55]} 29. Rxg2 {[%clk 0:00:30]}  Rxg2 {[%clk 0:00:56]} 30. Kc1 {[%clk 0:00:25]}  Bb7 {[%clk 0:00:42]} 31. Qa3 {[%clk 0:00:23]}  Qf5 {[%clk 0:00:35]} 32. Qe7 {[%clk 0:00:21]}  Bxf3 {[%clk 0:00:32]} 33. Qd8+ {[%clk 0:00:20]}  Kb7 {[%clk 0:00:31]} 34. Re1 {[%clk 0:00:20]}  Bc6 {[%clk 0:00:28]} 35. Qe7 {[%clk 0:00:16]}  f3 {[%clk 0:00:25]} 36. Rxe5 {[%clk 0:00:13]}  Rg1+ {[%clk 0:00:23]} 37. Re1 {[%clk 0:00:12]}  Qg5 {[%clk 0:00:13]} 38. Qe3 {[%clk 0:00:11]}  Qxe3 {[%clk 0:00:13]} 0-1


[Site "https://www.chess.com"]

[Event "Titled Tuesday Blitz January 03 Late 2023"]
[White "Cristobal, Manuel"]
[Black "Martinez, Marcel"]
[WhiteFideId "112879"]
[BlackFideId "2016249"]
[WhiteElo "2257"]
[BlackElo "2402"]
[Result "1-0"]
[Round "11"]
[TimeControl "180+2"]
[Date "2023.01.03"]
[WhiteClock "0:01:01"]
[BlackClock "0:00:19"]

1. d4 {[%clk 0:03:00]}  Nf6 {[%clk 0:02:58]} 2. Nf3 {[%clk 0:03:00]}  e6 {[%clk 0:02:58]} 3. e3 {[%clk 0:03:00]}  d5 {[%clk 0:02:54]} 4. Bd3 {[%clk 0:03:01]}  c5 {[%clk 0:02:54]} 5. O-O {[%clk 0:02:59]}  Nc6 {[%clk 0:02:52]} 6. b3 {[%clk 0:02:59]}  cxd4 {[%clk 0:02:50]} 7. exd4 {[%clk 0:02:58]}  Bd6 {[%clk 0:02:50]} 8. Bb2 {[%clk 0:02:56]}  Qc7 {[%clk 0:02:49]} 9. a3 {[%clk 0:02:54]}  Bd7 {[%clk 0:02:47]} 10. Re1 {[%clk 0:02:44]}  h6 {[%clk 0:02:40]} 11. Nbd2 {[%clk 0:02:43]}  Ng4 {[%clk 0:01:58]} 12. h3 {[%clk 0:02:38]}  Nf6 {[%clk 0:01:53]} 13. Ne5 {[%clk 0:02:38]}  Ne7 {[%clk 0:01:51]} 14. c4 {[%clk 0:02:36]}  O-O {[%clk 0:01:47]} 15. Rc1 {[%clk 0:02:33]}  Qd8 {[%clk 0:01:41]} 16. c5 {[%clk 0:02:33]}  Bc7 {[%clk 0:01:40]} 17. b4 {[%clk 0:02:33]}  Ne8 {[%clk 0:01:29]} 18. Rc3 {[%clk 0:02:26]}  f5 {[%clk 0:01:29]} 19. Nxd7 {[%clk 0:02:24]}  Qxd7 {[%clk 0:01:29]} 20. Nf3 {[%clk 0:02:24]}  Nf6 {[%clk 0:01:27]} 21. Ne5 {[%clk 0:02:24]}  Bxe5 {[%clk 0:01:23]} 22. dxe5 {[%clk 0:02:24]}  Ne8 {[%clk 0:01:11]} 23. Bc1 {[%clk 0:02:18]}  a6 {[%clk 0:01:11]} 24. Qh5 {[%clk 0:02:16]}  f4 {[%clk 0:01:07]} 25. Qg4 {[%clk 0:02:08]}  d4 {[%clk 0:00:58]} 26. Rc2 {[%clk 0:02:02]}  g5 {[%clk 0:00:49]} 27. Qh5 {[%clk 0:02:01]}  Kg7 {[%clk 0:00:46]} 28. h4 {[%clk 0:02:00]}  Nf5 {[%clk 0:00:43]} 29. hxg5 {[%clk 0:01:59]}  hxg5 {[%clk 0:00:30]} 30. Qxg5+ {[%clk 0:01:59]}  Kh8 {[%clk 0:00:31]} 31. Bxf4 {[%clk 0:01:53]}  Qh7 {[%clk 0:00:27]} 32. Bxf5 {[%clk 0:01:16]}  Rxf5 {[%clk 0:00:26]} 33. Qh6 {[%clk 0:01:16]}  Rxf4 {[%clk 0:00:26]} 34. Qxf4 {[%clk 0:01:14]}  Qxc2 {[%clk 0:00:26]} 35. Qh6+ {[%clk 0:01:14]}  Qh7 {[%clk 0:00:23]} 36. Qxe6 {[%clk 0:01:15]}  Ng7 {[%clk 0:00:23]} 37. Qd7 {[%clk 0:01:11]}  d3 {[%clk 0:00:21]} 38. Re3 {[%clk 0:01:09]}  Qf5 {[%clk 0:00:21]} 39. Rh3+ {[%clk 0:01:07]}  Kg8 {[%clk 0:00:21]} 40. Qd5+ {[%clk 0:01:05]}  Qf7 {[%clk 0:00:18]} 41. Qxd3 {[%clk 0:01:02]}  Re8 {[%clk 0:00:18]} 42. Qh7+ {[%clk 0:01:01]}  Kf8 {[%clk 0:00:19]} 43. Rf3 {[%clk 0:01:01]} 1-0


[Site "https://www.chess.com"]

[Event "Titled Tuesday Blitz January 03 Late 2023"]
[White "Bilan, Danila"]
[Black "Goryachkina, Aleksandra"]
[WhiteFideId "24161918"]
[BlackFideId "4147103"]
[WhiteElo "2303"]
[BlackElo "2571"]
[Result "0-1"]
[Round "11"]
[TimeControl "180+2"]
[Date "2023.01.03"]
[WhiteClock "0:00:05"]
[BlackClock "0:00:02"]

1. d4 {[%clk 0:02:56]}  Nf6 {[%clk 0:02:59]} 2. Nf3 {[%clk 0:02:56]}  d5 {[%clk 0:02:59]} 3. c4 {[%clk 0:02:56]}  e6 {[%clk 0:02:59]} 4. Nc3 {[%clk 0:02:56]}  Nbd7 {[%clk 0:02:59]} 5. cxd5 {[%clk 0:02:53]}  exd5 {[%clk 0:02:59]} 6. Bg5 {[%clk 0:02:54]}  c6 {[%clk 0:02:59]} 7. e3 {[%clk 0:02:54]}  Be7 {[%clk 0:02:58]} 8. Bd3 {[%clk 0:02:54]}  Ne4 {[%clk 0:02:57]} 9. Bf4 {[%clk 0:02:41]}  Ndf6 {[%clk 0:02:57]} 10. O-O {[%clk 0:02:38]}  O-O {[%clk 0:02:57]} 11. Qc2 {[%clk 0:02:38]}  Bd6 {[%clk 0:02:53]} 12. Bxd6 {[%clk 0:02:19]}  Nxd6 {[%clk 0:02:53]} 13. Ne5 {[%clk 0:02:19]}  g6 {[%clk 0:02:46]} 14. b4 {[%clk 0:02:13]}  a6 {[%clk 0:02:14]} 15. a4 {[%clk 0:02:06]}  Bd7 {[%clk 0:02:07]} 16. Rab1 {[%clk 0:01:44]}  Rc8 {[%clk 0:02:06]} 17. a5 {[%clk 0:01:01]}  Bf5 {[%clk 0:02:02]} 18. Na4 {[%clk 0:00:58]}  Re8 {[%clk 0:01:58]} 19. Nc5 {[%clk 0:00:53]}  Rc7 {[%clk 0:01:57]} 20. Rbd1 {[%clk 0:00:47]}  Bxd3 {[%clk 0:01:55]} 21. Qxd3 {[%clk 0:00:45]}  Qe7 {[%clk 0:01:46]} 22. f3 {[%clk 0:00:41]}  Nc4 {[%clk 0:01:41]} 23. f4 {[%clk 0:00:30]}  Nb2 {[%clk 0:01:40]} 24. Qe2 {[%clk 0:00:24]}  Nxd1 {[%clk 0:01:40]} 25. Qxd1 {[%clk 0:00:25]}  Ne4 {[%clk 0:01:27]} 26. Nxe4 {[%clk 0:00:16]}  dxe4 {[%clk 0:01:27]} 27. Qb3 {[%clk 0:00:15]}  Kg7 {[%clk 0:01:25]} 28. f5 {[%clk 0:00:10]}  f6 {[%clk 0:01:25]} 29. fxg6 {[%clk 0:00:09]}  hxg6 {[%clk 0:01:22]} 30. Ng4 {[%clk 0:00:03]}  Qe6 {[%clk 0:01:21]} 31. Qd1 {[%clk 0:00:03]}  Rf7 {[%clk 0:01:16]} 32. Nf2 {[%clk 0:00:03]}  Rh8 {[%clk 0:01:13]} 33. Qc2 {[%clk 0:00:02]}  f5 {[%clk 0:01:10]} 34. Nh3 {[%clk 0:00:02]}  Qd6 {[%clk 0:01:08]} 35. Qc3 {[%clk 0:00:01]}  Rf6 {[%clk 0:01:03]} 36. Nf4 {[%clk 0:00:02]}  g5 {[%clk 0:01:01]} 37. Nh3 {[%clk 0:00:02]}  Kg6 {[%clk 0:01:00]} 38. Qc5 {[%clk 0:00:02]}  Qd5 {[%clk 0:00:34]} 39. Qxd5 {[%clk 0:00:01]}  cxd5 {[%clk 0:00:34]} 40. Rc1 {[%clk 0:00:02]}  Rc6 {[%clk 0:00:34]} 41. Rc5 {[%clk 0:00:02]}  Rxc5 {[%clk 0:00:28]} 42. bxc5 {[%clk 0:00:03]}  Kf6 {[%clk 0:00:28]} 43. Kf2 {[%clk 0:00:03]}  Rh5 {[%clk 0:00:26]} 44. Kg3 {[%clk 0:00:03]}  Ke6 {[%clk 0:00:26]} 45. Nf2 {[%clk 0:00:04]}  f4+ {[%clk 0:00:19]} 46. exf4 {[%clk 0:00:03]}  gxf4+ {[%clk 0:00:20]} 47. Kxf4 {[%clk 0:00:03]}  Rxh2 {[%clk 0:00:19]} 48. Kg3 {[%clk 0:00:03]}  Rh8 {[%clk 0:00:17]} 49. Kf4 {[%clk 0:00:04]}  Rf8+ {[%clk 0:00:15]} 50. Ke3 {[%clk 0:00:03]}  Kd7 {[%clk 0:00:15]} 51. Nh3 {[%clk 0:00:03]}  Kc6 {[%clk 0:00:14]} 52. Nf4 {[%clk 0:00:03]}  Rg8 {[%clk 0:00:14]} 53. Kf2 {[%clk 0:00:03]}  Kb5 {[%clk 0:00:11]} 54. Nxd5 {[%clk 0:00:03]}  Rd8 {[%clk 0:00:11]} 55. Nf6 {[%clk 0:00:01]}  Rxd4 {[%clk 0:00:10]} 56. Ke3 {[%clk 0:00:02]}  Kxc5 {[%clk 0:00:04]} 57. Nxe4+ {[%clk 0:00:03]}  Kc4 {[%clk 0:00:04]} 58. g4 {[%clk 0:00:03]}  Rd3+ {[%clk 0:00:04]} 59. Kf4 {[%clk 0:00:03]}  Rd1 {[%clk 0:00:04]} 60. g5 {[%clk 0:00:04]}  Rg1 {[%clk 0:00:04]} 61. Ng3 {[%clk 0:00:04]}  Rd1 {[%clk 0:00:03]} 62. g6 {[%clk 0:00:05]}  Rd8 {[%clk 0:00:04]} 63. Nf5 {[%clk 0:00:05]}  Kb4 {[%clk 0:00:04]} 64. Nh6 {[%clk 0:00:03]}  Kxa5 {[%clk 0:00:04]} 65. g7 {[%clk 0:00:04]}  Kb4 {[%clk 0:00:05]} 66. Ng4 {[%clk 0:00:03]}  a5 {[%clk 0:00:04]} 67. Ne5 {[%clk 0:00:04]}  a4 {[%clk 0:00:04]} 68. Nd7 {[%clk 0:00:05]}  Rg8 {[%clk 0:00:02]} 69. Nb6 {[%clk 0:00:05]}  a3 {[%clk 0:00:02]} 70. Nd5+ {[%clk 0:00:05]}  Kb3 {[%clk 0:00:02]} 71. Nc3 {[%clk 0:00:05]}  Kxc3 {[%clk 0:00:02]} 0-1


[Site "https://www.chess.com"]

[Event "Titled Tuesday Blitz January 03 Late 2023"]
[White "Rangel, Daniel"]
[Black "Maksimovic, Bojan"]
[WhiteFideId "2124475"]
[BlackFideId "14408120"]
[WhiteElo "2207"]
[BlackElo "2486"]
[Result "1-0"]
[Round "11"]
[TimeControl "180+2"]
[Date "2023.01.03"]
[WhiteClock "0:00:10"]
[BlackClock "0:00:01"]

1. c4 {[%clk 0:02:59]}  g6 {[%clk 0:02:56]} 2. g3 {[%clk 0:02:59]}  Bg7 {[%clk 0:02:55]} 3. Bg2 {[%clk 0:03:00]}  Nf6 {[%clk 0:02:54]} 4. Nc3 {[%clk 0:03:01]}  d6 {[%clk 0:02:53]} 5. e3 {[%clk 0:03:01]}  e5 {[%clk 0:02:52]} 6. Nge2 {[%clk 0:03:02]}  O-O {[%clk 0:02:51]} 7. O-O {[%clk 0:03:02]}  Nbd7 {[%clk 0:02:52]} 8. b4 {[%clk 0:02:59]}  Re8 {[%clk 0:02:51]} 9. b5 {[%clk 0:02:58]}  e4 {[%clk 0:02:49]} 10. Bb2 {[%clk 0:02:47]}  Nc5 {[%clk 0:02:46]} 11. Nf4 {[%clk 0:02:36]}  Bf5 {[%clk 0:02:31]} 12. Qb1 {[%clk 0:02:32]}  c6 {[%clk 0:02:21]} 13. a4 {[%clk 0:02:26]}  a5 {[%clk 0:02:16]} 14. h4 {[%clk 0:02:21]}  Nb3 {[%clk 0:02:05]} 15. Qa2 {[%clk 0:01:28]}  Nxa1 {[%clk 0:02:01]} 16. Bxa1 {[%clk 0:01:29]}  h5 {[%clk 0:01:52]} 17. Nce2 {[%clk 0:01:23]}  Qd7 {[%clk 0:01:46]} 18. Nd4 {[%clk 0:01:21]}  Bg4 {[%clk 0:01:43]} 19. Rb1 {[%clk 0:01:14]}  c5 {[%clk 0:01:41]} 20. Nde2 {[%clk 0:01:10]}  Bf3 {[%clk 0:01:17]} 21. Bh3 {[%clk 0:01:07]}  Ng4 {[%clk 0:01:09]} 22. Bxg7 {[%clk 0:00:59]}  Kxg7 {[%clk 0:01:10]} 23. Qb2+ {[%clk 0:00:58]}  Re5 {[%clk 0:01:06]} 24. Nc3 {[%clk 0:00:58]}  Rb8 {[%clk 0:00:56]} 25. Ncd5 {[%clk 0:00:56]}  b6 {[%clk 0:00:54]} 26. d3 {[%clk 0:00:47]}  Qd8 {[%clk 0:00:16]} 27. d4 {[%clk 0:00:37]}  cxd4 {[%clk 0:00:13]} 28. Qxd4 {[%clk 0:00:38]}  Kg8 {[%clk 0:00:12]} 29. Rb2 {[%clk 0:00:36]}  Qc8 {[%clk 0:00:06]} 30. Nxb6 {[%clk 0:00:29]}  Qc5 {[%clk 0:00:03]} 31. Nd7 {[%clk 0:00:25]}  Qa3 {[%clk 0:00:03]} 32. Rb1 {[%clk 0:00:20]}  Rc8 {[%clk 0:00:02]} 33. Nd5 {[%clk 0:00:15]}  Rc5 {[%clk 0:00:02]} 34. Nxc5 {[%clk 0:00:13]}  dxc5 {[%clk 0:00:02]} 35. Qa1 {[%clk 0:00:12]}  Qd3 {[%clk 0:00:01]} 36. b6 {[%clk 0:00:10]} 1-0


[Site "https://www.chess.com"]